bitfinex-derivatives/quotes_BTCF0:USTF0_20250508
["timestamp","ask_amount","ask_price","bid_price","bid_amount"]
[1746664580962,0.3074781,97036.0,97035.0,0.27260518]
[1746664581168,0.3084781,97036.0,97035.0,0.44560518]
[1746664581368,0.3084781,97036.0,97035.0,0.3850802]
[1746664582369,0.4084781,97036.0,97035.0,0.3850802]
[1746664582573,0.3084781,97036.0,97035.0,0.3850802]
[1746664582867,0.4084781,97036.0,97035.0,0.3850802]
[1746664583070,0.3084781,97036.0,97035.0,0.3850802]
[1746664583268,0.3084781,97036.0,97035.0,0.2170802]
[1746664583968,0.38913774,97036.0,97035.0,0.2170802]
[1746664584269,0.48913774,97036.0,97035.0,0.19903018]
[1746664585176,0.48913774,97036.0,97035.0,0.011]
[1746664585560,0.48913774,97036.0,97034.0,0.05033744]
[1746664585770,0.0515216,97033.0,97030.0,0.0515223]
[1746664585964,0.3560887,97031.0,97030.0,0.19319579]
[1746664586164,0.3560887,97031.0,97030.0,0.36119579]
[1746664586363,0.4542887,97031.0,97030.0,0.36119579]
[1746664586765,0.4542887,97031.0,97030.0,0.168]
[1746664586965,0.4542887,97031.0,97030.0,0.3740908]
[1746664587174,0.4552887,97031.0,97030.0,0.2110908]
[1746664587367,0.4562887,97031.0,97030.0,0.2130908]
[1746664587674,0.4562887,97031.0,97030.0,0.18833635]
[1746664588062,0.4562887,97031.0,97030.0,0.2130908]
[1746664588274,0.4562887,97031.0,97030.0,0.007]
[1746664588772,0.4562887,97031.0,97030.0,0.2130908]
[1746664589863,0.3562887,97031.0,97030.0,0.2130908]
[1746664590170,0.43694834,97031.0,97030.0,0.3810908]
[1746664590569,0.43694834,97031.0,97030.0,0.4831908]
[1746664591073,0.43694834,97031.0,97030.0,0.2249]
[1746664591968,0.43694834,97031.0,97030.0,0.4309908]
[1746664593473,0.43694834,97031.0,97030.0,0.4259908]
[1746664593772,0.43694834,97031.0,97030.0,0.41294077]
[1746664594174,0.53694834,97031.0,97030.0,0.41294077]
[1746664594869,0.53694834,97031.0,97030.0,0.15694997]
[1746664595172,0.206093,97029.0,97028.0,0.05231773]
[1746664595468,0.2060972,97027.0,97026.0,0.2060985]
[1746664595670,0.1,97027.0,97023.0,0.0519]
[1746664595871,0.22,97031.0,97023.0,0.0519]
[1746664596073,0.2060961,97028.0,97024.0,0.0377067]
[1746664596267,0.3060977,97027.0,97025.0,0.0519]
[1746664596574,0.2060993,97026.0,97025.0,0.0519]
[1746664596768,0.001,97029.0,97028.0,0.2060951]
[1746664596972,0.001,97029.0,97028.0,0.103064]
[1746664597174,0.2060804,97035.0,97028.0,0.271064]
[1746664597376,0.2060804,97035.0,97028.0,0.168]
[1746664597571,0.2060826,97034.0,97029.0,0.0519]
[1746664597772,0.5668846,97033.0,97029.0,0.0519]
[1746664597972,0.2060887,97031.0,97030.0,0.0506]
[1746664598169,0.2060887,97031.0,97030.0,0.2186]
[1746664598676,0.206088,97032.0,97030.0,0.2186]
[1746664598874,0.3608,97033.0,97031.0,0.0474]
[1746664599069,0.2060866,97032.0,97031.0,0.0474]
[1746664599276,0.2060866,97032.0,97031.0,0.2639]
[1746664600179,0.2070866,97032.0,97031.0,0.2639]
[1746664600677,0.2080866,97032.0,97031.0,0.2639]
[1746664601774,0.3080866,97032.0,97031.0,0.2154]
[1746664603781,0.3080866,97032.0,97031.0,0.19064574]
[1746664604684,0.3080866,97032.0,97031.0,0.168]
[1746664605884,0.3580866,97032.0,97031.0,0.168]
[1746664606181,0.3580866,97032.0,97023.0,0.0506378]
[1746664606182,0.2061036,97024.0,97023.0,0.0506378]
[1746664606385,0.2061057,97023.0,97013.0,0.0472]
[1746664606575,0.2552057,97023.0,97013.0,0.0472]
[1746664606775,0.2552057,97023.0,97013.0,0.0941]
[1746664606976,0.2552057,97023.0,97022.0,0.05150902]
[1746664607175,0.2552057,97023.0,97022.0,0.16889182]
[1746664607685,0.2552057,97023.0,97022.0,0.18256787]
[1746664608282,0.2552057,97023.0,97022.0,0.05081317]
[1746664608483,0.2061213,97016.0,97014.0,0.0438]
[1746664608684,0.0515275,97021.0,97014.0,0.0438]
[1746664608685,0.3061227,97015.0,97014.0,0.0438]
[1746664609283,0.3061227,97015.0,97014.0,0.2118]
[1746664609479,0.3061227,97015.0,97014.0,0.26317655]
[1746664609876,0.001,97015.0,97014.0,0.26317655]
[1746664610588,0.00082127,97015.0,97014.0,0.26317655]
[1746664610792,0.00082127,97015.0,97014.0,0.31007655]
[1746664611189,0.00182127,97015.0,97014.0,0.31007655]
[1746664611690,0.00182127,97015.0,97014.0,0.28531843]
[1746664612989,0.00182127,97015.0,97014.0,0.59451922]
[1746664613189,0.00182127,97015.0,97014.0,0.49144323]
[1746664613393,0.00182127,97015.0,97014.0,0.28531843]
[1746664614494,0.00182127,97015.0,97014.0,0.36071843]
[1746664615899,0.00182127,97015.0,97014.0,0.56684323]
[1746664616191,0.00182127,97015.0,97014.0,0.5487912]
[1746664616396,0.00182127,97015.0,97014.0,0.3426664]
[1746664616600,0.00182127,97015.0,97014.0,0.53589682]
[1746664617595,0.00182127,97015.0,97014.0,0.32977202]
[1746664617998,0.00182127,97015.0,97014.0,0.53589682]
[1746664618590,0.18732455,97015.0,97014.0,0.95359682]
[1746664619598,0.18732455,97015.0,97014.0,0.74747202]
[1746664619898,0.18732455,97015.0,97014.0,0.72271476]
[1746664620892,0.18732455,97015.0,97014.0,0.67581476]
[1746664621495,0.18732455,97015.0,97014.0,0.63867869]
[1746664621794,0.28232455,97015.0,97014.0,0.63867869]
[1746664624193,0.28232455,97015.0,97014.0,0.62062621]
[1746664624793,0.48844725,97015.0,97014.0,0.62062621]
[1746664624994,0.28232455,97015.0,97014.0,0.62062621]
[1746664625196,0.28232455,97015.0,97014.0,0.54447655]
[1746664626702,0.28232455,97015.0,97014.0,0.5315819]
[1746664626896,0.09682127,97015.0,97014.0,0.5315819]
[1746664627097,0.09682127,97015.0,97014.0,0.6995819]
[1746664627597,0.09682127,97015.0,97014.0,0.2818819]
[1746664629201,0.09682127,97015.0,97014.0,0.1138819]
[1746664630104,0.09682127,97015.0,97014.0,0.2818819]
[1746664632494,0.09682127,97015.0,97014.0,0.25712417]
[1746664634608,0.09682127,97015.0,97014.0,0.38784897]
[1746664634813,0.09682127,97015.0,97014.0,0.18172417]
[1746664635106,0.09682127,97015.0,97014.0,0.38784897]
[1746664635505,0.09682127,97015.0,97014.0,0.18172417]
[1746664636101,0.19682127,97015.0,97014.0,0.18172417]
[1746664636512,0.40294397,97015.0,97014.0,0.18172417]
[1746664636704,0.09682127,97015.0,97014.0,0.16882965]
[1746664636910,0.30294397,97015.0,97014.0,0.16882965]
[1746664637105,0.30294397,97015.0,97014.0,0.00082965]
[1746664637106,0.09682127,97015.0,97014.0,0.00082965]
[1746664637310,0.206127,97013.0,97012.0,0.07556]
[1746664637506,0.09682127,97015.0,97012.0,0.07556]
[1746664637507,0.2560249,97014.0,97012.0,0.07556]
[1746664638006,0.303127,97013.0,97012.0,0.12817527]
[1746664638201,0.403127,97013.0,97012.0,0.12817527]
[1746664638404,0.404127,97013.0,97012.0,0.12817527]
[1746664640513,0.404127,97013.0,97012.0,0.10341638]
[1746664641204,0.198,97013.0,97012.0,0.30954548]
[1746664641405,0.405127,97013.0,97012.0,0.10341638]
[1746664642311,0.405127,97013.0,97012.0,0.30954548]
[1746664642508,0.199,97013.0,97012.0,0.30954548]
[1746664642913,0.405127,97013.0,97012.0,0.30954548]
[1746664643414,0.099,97013.0,97012.0,0.30954548]
[1746664644111,0.099,97013.0,97012.0,0.47754548]
[1746664644618,0.305127,97013.0,97012.0,0.27141638]
[1746664644917,0.305127,97013.0,97012.0,0.22061527]
[1746664644918,0.455127,97013.0,97012.0,0.22061527]
[1746664645213,0.2561461,97004.0,97003.0,0.07556]
[1746664645401,0.05,97004.0,97003.0,0.2817082]
[1746664645813,0.2561461,97004.0,97003.0,0.2817082]
[1746664646014,0.3059461,97004.0,97003.0,0.2817082]
[1746664646605,0.4059461,97004.0,97003.0,0.07556]
[1746664646801,0.4059461,97004.0,97003.0,0.12711075]
[1746664647005,0.4069461,97004.0,97003.0,0.11421471]
[1746664647202,0.303888,97004.0,97000.0,0.105]
[1746664647407,0.2061801,96988.0,96987.0,0.00154659]
[1746664647708,1.9469801,96988.0,96987.0,0.00154659]
[1746664648416,0.2061978,96982.0,96981.0,0.2577368]
[1746664648712,0.05,96982.0,96981.0,0.2577368]
[1746664648921,0.168,96988.0,96987.0,0.2061822]
[1746664649217,0.00774712,96994.0,96992.0,0.2061695]
[1746664649410,1.23,96993.0,96992.0,0.2061695]
[1746664649617,1.4361695,96993.0,96992.0,0.2061695]
[1746664649810,0.2061695,96993.0,96992.0,0.2061695]
[1746664650207,0.2061695,96993.0,96992.0,0.3741695]
[1746664650520,0.2071695,96993.0,96992.0,0.3741695]
[1746664650813,0.2081695,96993.0,96992.0,0.3741695]
[1746664651010,0.3049695,96993.0,96992.0,0.3741695]
[1746664652220,0.3049695,96993.0,96992.0,0.2061695]
[1746664653120,0.3049695,96993.0,96992.0,0.3741695]
[1746664654919,0.3549695,96993.0,96992.0,0.3741695]
[1746664655520,0.1488,96993.0,96992.0,0.3741695]
[1746664655825,0.0988,96993.0,96992.0,0.4217695]
[1746664656020,0.0988,96993.0,96992.0,0.4699695]
[1746664656521,0.0988,96993.0,96992.0,0.44520673]
[1746664657520,0.0988,96993.0,96992.0,0.43230924]
[1746664657818,0.002,96993.0,96992.0,0.43230924]
[1746664658219,0.0504,96993.0,96992.0,0.43230924]
[1746664658522,0.3059695,96993.0,96992.0,0.43230924]
[1746664659820,0.0998,96993.0,96992.0,0.43230924]
[1746664661332,0.4059695,96993.0,96992.0,0.33650924]
[1746664661525,0.3059695,96993.0,96992.0,0.33650924]
[1746664661820,0.4559695,96993.0,96992.0,0.168]
[1746664662221,0.4559695,96993.0,96992.0,0.3741716]
[1746664664415,0.4559695,96993.0,96992.0,0.34940704]
[1746664664722,0.4559695,96993.0,96992.0,0.31225919]
[1746664665122,0.4559695,96993.0,96992.0,0.29420121]
[1746664666126,0.4559695,96993.0,96992.0,0.2061716]
[1746664667125,0.3559695,96993.0,96992.0,0.2061716]
[1746664667620,0.4559695,96993.0,96992.0,0.2061716]
[1746664667825,0.64147278,96993.0,96992.0,0.19327302]
[1746664668027,0.54147278,96993.0,96992.0,0.19327302]
[1746664668323,0.2577285,96991.0,96990.0,0.257715]
[1746664668524,0.2061847,96991.0,96990.0,0.257715]
[1746664668717,0.3073847,96991.0,96990.0,0.257715]
[1746664669418,0.3550847,96991.0,96990.0,0.257715]
[1746664669924,0.3650847,96991.0,96990.0,0.257715]
[1746664670325,0.3650847,96991.0,96990.0,0.425715]
[1746664670626,0.3650847,96991.0,96990.0,0.3741716]
[1746664670825,0.1112,96991.0,96990.0,0.425715]
[1746664671126,0.01,96991.0,96990.0,0.946519]
[1746664671320,0.02,96991.0,96990.0,0.946519]
[1746664671525,0.02,96991.0,96990.0,0.995519]
[1746664672024,0.18550328,96993.0,96992.0,0.2061716]
[1746664672732,0.0497,97004.0,97003.0,0.2061482]
[1746664672921,0.0986,97004.0,97003.0,0.1813879]
[1746664673122,0.0986,97004.0,97003.0,0.4251079]
[1746664673528,0.0986,97004.0,97003.0,0.4741079]
[1746664674327,0.3047461,97004.0,97003.0,0.4741079]
[1746664674827,0.3047461,97004.0,97003.0,0.4751079]
[1746664675035,0.3247461,97004.0,97003.0,0.4761079]
[1746664675432,0.1186,97004.0,97003.0,0.4761079]
[1746664675934,0.1126,97004.0,97003.0,0.4751079]
[1746664676228,0.1066,97004.0,97003.0,0.4751079]
[1746664676930,0.1066,97004.0,97003.0,0.3993879]
[1746664677232,0.1056,97004.0,97003.0,0.4751079]
[1746664677631,0.6725461,97004.0,97003.0,0.4751079]
[1746664677825,0.4694,97004.0,97003.0,0.4751079]
[1746664678637,0.4694,97004.0,97003.0,0.46220999]
[1746664680240,0.4694,97004.0,97003.0,0.44415289]
[1746664680939,0.4694,97004.0,97003.0,0.41938881]
[1746664682952,0.6755461,97004.0,97003.0,0.37038881]
[1746664684751,0.6755461,97004.0,97003.0,0.33324255]
[1746664687953,0.78038974,97004.0,97003.0,0.33324255]
[1746664688453,0.78038974,97004.0,97003.0,0.24472]
[1746664688648,0.78038974,97004.0,97003.0,0.4508682]
[1746664688950,0.78038974,97004.0,97003.0,0.42610394]
[1746664689349,0.78038974,97004.0,97003.0,0.41320589]
[1746664690348,0.41958974,97004.0,97003.0,0.41320589]
[1746664690861,0.21344364,97004.0,97003.0,0.37606308]
[1746664691651,0.21344364,97004.0,97003.0,0.34674308]
[1746664691851,0.21344364,97004.0,97003.0,0.42394308]
[1746664692151,0.1086,97004.0,97003.0,0.42394308]
[1746664694658,0.0597,97004.0,97003.0,0.42394308]
[1746664695062,0.0597,97004.0,97003.0,0.47414308]
[1746664695653,0.01,97004.0,97003.0,0.47414308]
[1746664695860,0.0472,97012.0,97011.0,0.2061312]
[1746664696555,0.0472,97012.0,97011.0,0.3012312]
[1746664696756,0.0472,97012.0,97011.0,0.28317834]
[1746664696965,0.15194364,97018.0,97017.0,0.2061185]
[1746664697265,0.15194364,97018.0,97017.0,0.3741185]
[1746664697956,0.15194364,97018.0,97017.0,0.4224185]
[1746664698351,0.15194364,97018.0,97017.0,0.4234185]
[1746664698566,0.0531,97018.0,97017.0,0.4234185]
[1746664698955,0.0581,97018.0,97017.0,0.4244185]
[1746664699356,0.0581,97018.0,97017.0,0.41152433]
[1746664699556,0.0571,97018.0,97017.0,0.41052433]
[1746664699961,0.0531,97018.0,97017.0,0.41052433]
[1746664700162,0.0551,97018.0,97017.0,0.40952433]
[1746664700765,0.0511,97018.0,97017.0,0.40952433]
[1746664700961,0.0541,97018.0,97017.0,0.40952433]
[1746664701565,0.0521,97018.0,97017.0,0.41052433]
[1746664701763,0.0531,97018.0,97017.0,0.41052433]
[1746664702565,0.0481,97018.0,97017.0,0.40952433]
[1746664702861,0.0531,97018.0,97017.0,0.82822433]
[1746664703769,0.0551,97018.0,97017.0,0.82822433]
[1746664703960,0.008,97018.0,97017.0,0.79108924]
[1746664705170,0.008,97018.0,97017.0,0.77303754]
[1746664705365,0.0508,97023.0,97017.0,0.635]
[1746664705570,0.0508,97023.0,97022.0,0.2061078]
[1746664706170,0.0508,97023.0,97022.0,0.3741078]
[1746664706564,0.15564364,97023.0,97022.0,0.3741078]
[1746664707564,0.15564364,97023.0,97022.0,0.3751078]
[1746664707565,0.16064364,97023.0,97022.0,0.3751078]
[1746664708473,0.16364364,97023.0,97022.0,0.3751078]
[1746664709968,0.16364364,97023.0,97022.0,0.36221373]
[1746664710575,0.16364364,97023.0,97022.0,0.32507886]
[1746664713367,0.16364364,97023.0,97022.0,0.3070272]
[1746664713575,0.16364364,97023.0,97022.0,0.169]
[1746664713778,0.16364364,97023.0,97022.0,0.3751078]
[1746664716578,0.16064364,97023.0,97022.0,0.3751078]
[1746664716778,0.16364364,97023.0,97022.0,0.3751078]
[1746664717279,0.0588,97023.0,97022.0,0.3751078]
[1746664718080,0.0588,97023.0,97022.0,0.2071078]
[1746664719180,0.0588,97023.0,97022.0,0.3751078]
[1746664720479,0.0588,97023.0,97022.0,0.36221376]
[1746664721769,0.0588,97023.0,97022.0,0.3441621]
[1746664728583,0.1101,97023.0,97022.0,0.3441621]
[1746664730989,0.1101,97023.0,97022.0,0.3312682]
[1746664733678,0.0593,97023.0,97022.0,0.6920682]
[1746664735290,0.0593,97023.0,97022.0,0.7693882]
[1746664735684,0.008,97023.0,97022.0,1.1870882]
[1746664736789,0.003,97023.0,97022.0,1.1880882]
[1746664736996,0.0959,97025.0,97024.0,0.2061036]
[1746664737296,0.0959,97025.0,97024.0,0.3741036]
[1746664738692,0.0959,97025.0,97024.0,0.7918036]
[1746664739595,0.0969,97025.0,97024.0,0.7968036]
[1746664741005,0.0969,97025.0,97024.0,0.78391076]
[1746664741497,0.1478,97025.0,97024.0,0.78391076]
[1746664742091,0.0969,97025.0,97024.0,0.78391076]
[1746664742298,0.41616588,97038.0,97037.0,0.206076]
[1746664742299,0.34418661,97038.0,97037.0,0.206076]
[1746664742499,0.34418661,97038.0,97037.0,0.283396]
[1746664743198,0.34418661,97038.0,97037.0,0.498096]
[1746664743597,0.32402501,97038.0,97037.0,0.499096]
[1746664744101,0.0509,97055.0,97054.0,0.2060399]
[1746664744299,0.0509,97055.0,97054.0,0.2833599]
[1746664744498,1.2809,97055.0,97054.0,0.2833599]
[1746664744796,1.3292,97055.0,97054.0,0.2833599]
[1746664745194,1.3342,97055.0,97054.0,0.2843599]
[1746664745399,1.3827,97055.0,97054.0,0.33597755]
[1746664745599,0.1527,97055.0,97054.0,0.33597755]
[1746664746089,0.1527,97055.0,97054.0,0.50397755]
[1746664746294,0.1477,97055.0,97054.0,0.50297755]
[1746664746493,0.1517,97055.0,97054.0,0.50297755]
[1746664746696,0.1557,97055.0,97054.0,0.50297755]
[1746664749204,0.1557,97055.0,97054.0,0.33497755]
[1746664749602,0.1557,97055.0,97054.0,0.31693125]
[1746664750304,0.1557,97055.0,97054.0,0.48493125]
[1746664751100,0.1557,97055.0,97054.0,0.31693125]
[1746664751696,0.1557,97055.0,97054.0,0.30404107]
[1746664757514,0.1557,97055.0,97054.0,0.26691733]
[1746664757702,0.26054364,97055.0,97054.0,0.26691733]
[1746664758201,0.26054364,97055.0,97054.0,0.24987107]
[1746664759007,0.25654364,97055.0,97054.0,0.24887107]
[1746664759212,0.26054364,97055.0,97054.0,0.24987107]
[1746664762211,0.26054364,97055.0,97054.0,0.23698089]
[1746664762616,0.26054364,97055.0,97054.0,0.23810089]
[1746664763409,0.26054364,97055.0,97054.0,0.13105765]
[1746664763707,0.26054364,97055.0,97054.0,0.33709755]
[1746664764317,0.26054364,97055.0,97054.0,0.25798906]
[1746664765614,1.49054364,97055.0,97054.0,0.25798906]
[1746664765814,1.49054364,97055.0,97054.0,0.30978709]
[1746664766515,1.49054364,97055.0,97054.0,0.29174072]
[1746664767813,1.69658144,97055.0,97054.0,0.29174072]
[1746664768019,1.49054364,97055.0,97054.0,0.29174072]
[1746664768225,1.69658144,97055.0,97054.0,0.29174072]
[1746664768518,1.49054364,97055.0,97054.0,0.29174072]
[1746664769018,1.5917378,97055.0,97054.0,0.29174072]
[1746664769215,1.3857,97055.0,97054.0,0.29174072]
[1746664772718,1.3857,97055.0,97054.0,0.27885039]
[1746664773214,1.3348,97055.0,97054.0,0.42583793]
[1746664773419,1.3348,97055.0,97054.0,0.50427793]
[1746664773720,1.3348,97055.0,97054.0,0.55447793]
[1746664774111,1.3348,97055.0,97054.0,0.38647793]
[1746664775107,1.3348,97055.0,97054.0,0.36843158]
[1746664776718,0.1048,97055.0,97054.0,0.36843158]
[1746664779420,0.1058,97055.0,97054.0,0.36943158]
[1746664780107,0.1048,97055.0,97054.0,0.36943158]
[1746664781115,0.1008,97055.0,97054.0,0.36843158]
[1746664781420,0.1048,97055.0,97054.0,0.36943158]
[1746664783320,0.1048,97055.0,97054.0,0.35654139]
[1746664783521,0.1048,97055.0,97054.0,0.33849513]
[1746664784119,0.1038,97055.0,97054.0,0.33749513]
[1746664784620,0.1008,97055.0,97054.0,0.33645513]
[1746664784811,0.1058,97055.0,97054.0,0.33745513]
[1746664786418,0.1058,97055.0,97054.0,0.30033139]
[1746664787323,0.1048,97055.0,97054.0,0.30033139]
[1746664787817,0.1018,97055.0,97054.0,0.30033139]
[1746664788023,0.1048,97055.0,97054.0,0.30033139]
[1746664788525,0.20964364,97055.0,97054.0,0.30033139]
[1746664790130,0.20464364,97055.0,97054.0,0.29933139]
[1746664790325,0.20964364,97055.0,97054.0,0.30033139]
[1746664790924,0.20664364,97055.0,97054.0,0.30033139]
[1746664791124,0.20964364,97055.0,97054.0,0.30033139]
[1746664792026,0.20964364,97055.0,97054.0,0.28228517]
[1746664793424,0.20964364,97055.0,97054.0,0.26939501]
[1746664794527,0.20964364,97055.0,97054.0,0.38643793]
[1746664798526,0.20964364,97055.0,97054.0,0.35260126]
[1746664799931,0.20964364,97055.0,97054.0,0.33455504]
[1746664800133,0.20464364,97055.0,97054.0,0.33355504]
[1746664800339,0.41568144,97055.0,97054.0,0.001]
[1746664800632,0.257557,97054.0,97053.0,0.2060399]
[1746664800834,0.2533462,97054.0,97053.0,0.2060399]
[1746664801134,0.5230462,97054.0,97053.0,0.2060399]
[1746664802023,0.5270462,97054.0,97053.0,0.2070399]
[1746664802530,0.5270462,97054.0,97053.0,0.1822898]
[1746664802832,0.73959115,97054.0,97053.0,0.1822898]
[1746664803022,0.73959115,97054.0,97053.0,0.10677986]
[1746664803419,0.74259115,97054.0,97053.0,0.10677986]
[1746664803625,0.63488984,97054.0,97053.0,0.09388901]
[1746664804227,0.0515109,97053.0,97052.0,0.2060435]
[1746664804432,0.2575571,97053.0,97052.0,0.2060435]
[1746664804621,0.3603571,97053.0,97052.0,0.2060435]
[1746664805224,0.5283571,97053.0,97052.0,0.2060435]
[1746664805434,0.5283571,97053.0,97052.0,0.2070435]
[1746664805435,0.6333571,97053.0,97052.0,0.2070435]
[1746664806536,0.6353571,97053.0,97052.0,0.2070435]
[1746664808531,0.7383931,97053.0,97052.0,0.2070435]
[1746664808833,0.7383931,97053.0,97052.0,0.001]
[1746664809041,0.7383931,97053.0,97017.0,0.0515294]
[1746664809042,0.480836,97053.0,97017.0,0.0515294]
[1746664809233,0.5668781,97038.0,97037.0,0.2575888]
[1746664809433,0.6668781,97038.0,97037.0,0.2575888]
[1746664809633,1.8968781,97038.0,97037.0,0.2575888]
[1746664809835,1.7968781,97038.0,97037.0,0.30878878]
[1746664810343,1.9648781,97038.0,97037.0,0.30878878]
[1746664810639,2.1168781,97038.0,97037.0,0.28903515]
[1746664811739,2.0168781,97038.0,97037.0,0.28903515]
[1746664811939,2.1168781,97038.0,97037.0,0.28903515]
[1746664812241,2.1168781,97038.0,97037.0,0.29203515]
[1746664813541,2.1168781,97038.0,97037.0,0.28903515]
[1746664813734,2.1168781,97038.0,97037.0,0.29203515]
[1746664813934,2.0168781,97038.0,97037.0,0.29203515]
[1746664815241,1.8488781,97038.0,97037.0,0.29203515]
[1746664815941,1.8488781,97038.0,97037.0,0.27914264]
[1746664816144,2.0168781,97038.0,97037.0,0.27914264]
[1746664817343,1.8488781,97038.0,97037.0,0.27914264]
[1746664818450,1.8488781,97038.0,97037.0,0.25438901]
[1746664818745,1.6428,97038.0,97037.0,0.23633949]
[1746664818942,1.8488739,97038.0,97037.0,0.23633949]
[1746664827138,1.6428,97038.0,97037.0,0.23633949]
[1746664827746,1.6428,97038.0,97037.0,0.28963949]
[1746664828346,1.8488739,97038.0,97037.0,0.28963949]
[1746664830254,1.8488739,97038.0,97037.0,0.27674744]
[1746664832954,1.8488739,97038.0,97037.0,0.2519947]
[1746664833356,1.8488739,97038.0,97037.0,0.16334729]
[1746664833550,1.8488739,97038.0,97037.0,0.36941779]
[1746664833853,1.8488739,97038.0,97037.0,0.35136892]
[1746664839456,1.8488739,97038.0,97037.0,0.31423981]
[1746664839657,1.8488739,97038.0,97037.0,0.36575811]
[1746664840654,1.6428,97038.0,97013.0,0.4177]
[1746664840851,0.0515261,97024.0,97020.0,0.07624]
[1746664841056,0.56691,97021.0,97020.0,0.05148216]
[1746664841259,0.61691,97021.0,97020.0,0.25759426]
[1746664842055,0.0515327,97012.0,97009.0,0.32384461]
[1746664842254,0.0515327,97012.0,97010.0,0.0507]
[1746664842255,0.1553,97011.0,97010.0,0.0507]
[1746664842559,1.7461,97011.0,97010.0,0.0507]
[1746664842857,1.9522312,97011.0,97010.0,0.2061312]
[1746664843255,1.9522312,97011.0,97005.0,0.0507]
[1746664843256,0.2061595,97003.0,97000.0,0.2061461]
[1746664843456,0.1033,97002.0,97001.0,0.2061525]
[1746664843658,0.1033,97002.0,97001.0,0.2568525]
[1746664843855,1.7598,97011.0,97010.0,0.2061333]
[1746664844357,0.3618,97011.0,97010.0,0.2823733]
[1746664844551,0.5679312,97011.0,97010.0,0.2823733]
[1746664844752,0.3618,97011.0,97010.0,0.3351733]
[1746664845259,0.4665,97011.0,97010.0,0.5031733]
[1746664845458,0.4665,97011.0,97010.0,0.46603387]
[1746664845662,0.4655,97011.0,97010.0,0.46603387]
[1746664846359,0.6726312,97011.0,97010.0,0.30303387]
[1746664846559,0.6726312,97011.0,97010.0,0.22679387]
[1746664846761,0.6726312,97011.0,97010.0,0.30303387]
[1746664848165,0.6726312,97011.0,97010.0,0.47103387]
[1746664849063,0.6726312,97011.0,97010.0,0.30303387]
[1746664851062,0.3118312,97011.0,97010.0,0.29013834]
[1746664856663,0.1057,97011.0,97010.0,0.29013834]
[1746664856864,0.3118312,97011.0,97010.0,0.29013834]
[1746664857166,0.1057,97011.0,97010.0,0.29013834]
[1746664857671,0.3118312,97011.0,97010.0,0.34263834]
[1746664858861,0.3118312,97011.0,97010.0,0.31787891]
[1746664861871,0.3118312,97011.0,97010.0,0.30498338]
[1746664862471,0.3118312,97011.0,97010.0,0.25248338]
[1746664862675,0.3118312,97011.0,97010.0,0.13404]
[1746664863063,0.3118312,97011.0,97010.0,0.3401733]
[1746664865567,0.1057,97011.0,97010.0,0.3401733]
[1746664866374,0.1057,97011.0,97010.0,0.2639333]
[1746664866672,0.3118312,97011.0,97010.0,0.3401733]
[1746664866867,0.3118312,97011.0,97010.0,0.31541387]
[1746664867670,0.3118312,97011.0,97010.0,0.23917387]
[1746664867875,0.3118312,97011.0,97010.0,0.31541387]
[1746664870276,0.5298312,97011.0,97010.0,0.08124]
[1746664870471,0.6298312,97011.0,97010.0,0.2873733]
[1746664870779,1.8598312,97011.0,97010.0,0.2873733]
[1746664870972,1.8598312,97011.0,97010.0,0.08124]
[1746664871273,1.8598312,97011.0,97010.0,0.2061333]
[1746664871773,0.2061461,97004.0,97003.0,0.2831482]
[1746664871979,0.2061397,97008.0,97007.0,0.2061376]
[1746664872277,0.2061397,97008.0,97007.0,0.19324101]
[1746664872470,1.5334397,97008.0,97007.0,0.19324101]
[1746664873073,0.2061461,97004.0,97003.0,0.2851462]
[1746664873273,0.2061461,97004.0,97003.0,0.002]
[1746664873479,0.2071461,97004.0,97003.0,0.009]
[1746664873674,0.2071461,97004.0,97003.0,0.2131482]
[1746664874274,1.6051461,97004.0,97003.0,0.2131482]
[1746664874872,1.6051461,97004.0,97003.0,0.18838536]
[1746664875080,1.6041461,97004.0,97003.0,0.18838536]
[1746664875680,1.6061461,97004.0,97003.0,0.19338536]
[1746664876576,1.6051461,97004.0,97003.0,0.18838536]
[1746664876884,1.6151461,97004.0,97003.0,0.18938536]
[1746664877179,1.6151461,97004.0,97003.0,0.2071482]
[1746664877382,1.6091461,97004.0,97003.0,0.2071482]
[1746664877583,1.6681461,97004.0,97003.0,0.2071482]
[1746664877783,1.7681461,97004.0,97003.0,0.2071482]
[1746664878282,1.7681461,97004.0,97003.0,0.001]
[1746664878486,1.7681461,97004.0,97003.0,0.2071482]
[1746664878785,1.7631461,97004.0,97003.0,0.2061482]
[1746664879081,0.2061567,96999.0,96998.0,0.36082796]
[1746664879277,0.3561567,96999.0,96998.0,0.29123213]
[1746664879683,1.5861567,96999.0,96998.0,0.29123213]
[1746664879884,1.6866567,96999.0,96998.0,0.29123213]
[1746664880088,1.6896567,96999.0,96998.0,0.29123213]
[1746664880384,1.8626567,96999.0,96998.0,0.29123213]
[1746664880682,1.7626567,96999.0,96998.0,0.29123213]
[1746664881183,1.5946567,96999.0,96998.0,0.29123213]
[1746664882282,1.5946567,96999.0,96998.0,0.27833482]
[1746664882784,1.5946567,96999.0,96998.0,0.25357198]
[1746664885190,1.7626567,96999.0,96998.0,0.25357198]
[1746664885986,1.7626567,96999.0,96998.0,0.30408432]
[1746664886588,1.8626567,96999.0,96998.0,0.30408432]
[1746664886789,1.7626567,96999.0,96998.0,0.30408432]
[1746664887094,1.5946567,96999.0,96998.0,0.30408432]
[1746664890800,1.5946567,96999.0,96998.0,0.27932148]
[1746664891702,1.5946567,96999.0,96998.0,0.25666904]
[1746664892003,1.5946567,96999.0,96998.0,0.30820864]
[1746664892903,1.5946567,96999.0,96998.0,0.29531199]
[1746664893096,1.5946567,96999.0,96998.0,0.34671199]
[1746664897214,1.7626567,96999.0,96998.0,0.34671199]
[1746664898216,1.5946567,96999.0,96998.0,0.34671199]
[1746664898821,1.5946567,96999.0,96998.0,0.32195001]
[1746664901118,1.7626567,96999.0,96998.0,0.32195001]
[1746664901616,1.8626567,96999.0,96998.0,0.10191234]
[1746664901822,1.8626567,96999.0,96998.0,0.05051234]
[1746664902119,0.2061631,96997.0,96996.0,0.2061613]
[1746664902319,0.2061631,96997.0,96996.0,0.25652172]
[1746664902513,0.3044631,96997.0,96996.0,0.25652172]
[1746664902809,0.3044631,96997.0,96996.0,0.30482172]
[1746664903021,0.3044631,96997.0,96996.0,0.29192434]
[1746664903209,0.3064631,96997.0,96996.0,0.29192434]
[1746664903517,0.3084631,96997.0,96996.0,0.29292434]
[1746664906820,0.3084631,96997.0,96996.0,0.26816138]
[1746664907119,0.4764631,96997.0,96996.0,0.26816138]
[1746664908120,0.3084631,96997.0,96996.0,0.26816138]
[1746664913125,0.3084631,96997.0,96996.0,0.255264]
[1746664914828,0.3084631,96997.0,96996.0,0.23050103]